bitfinex-derivatives/quotes_SOLF0:USTF0_20250113
["timestamp","ask_amount","ask_price","bid_price","bid_amount"]
[1736802595937,20.92998254,181.76,181.64,1.6767]
[1736802596141,20.92998254,181.76,181.61,20.92998254]
[1736802596142,20.92998254,181.73,181.61,6.54]
[1736802596341,1.6042,181.72,181.61,6.54]
[1736802596542,2.7533,181.68,181.63,2.7538]
[1736802596742,2.7533,181.68,181.61,6.54]
[1736802597141,2.7533,181.68,181.63,2.7539]
[1736802597548,20.92998254,181.7,181.6,1.6849]
[1736802597749,20.92998254,181.7,181.58,94.44]
[1736802598043,20.92998254,181.7,181.58,100.98]
[1736802598237,2.7537,181.64,181.58,103.7346]
[1736802598439,20.92998254,181.7,181.58,103.7346]
[1736802598849,20.92998254,181.7,181.58,100.98]
[1736802599144,20.92998254,181.7,181.61,2.7542]
[1736802599343,20.92998254,181.7,181.58,100.98]
[1736802600050,20.92998254,181.7,181.59,2.7545]
[1736802600441,1.6042,181.72,181.58,100.98]
[1736802600638,20.92998254,181.67,181.58,94.44]
[1736802600847,3.2644,181.66,181.58,94.44]
[1736802601041,2.7537,181.64,181.58,94.44]
[1736802601242,3.2644,181.66,181.58,94.44]
[1736802601645,20.92998254,181.65,181.58,94.44]
[1736802601846,3.2644,181.66,181.58,94.44]
[1736802602045,1.5753,181.66,181.58,94.44]
[1736802602244,1.5753,181.66,181.59,2.7544]
[1736802602450,1.5753,181.66,181.58,94.44]
[1736802602644,1.5753,181.66,181.59,2.7545]
[1736802602845,1.5753,181.66,181.58,94.44]
[1736802603753,2.7537,181.65,181.6,2.7542]
[1736802603950,22.61908254,181.71,181.58,94.44]
[1736802604153,24.33168254,181.71,181.58,94.44]
[1736802604345,2.7535,181.66,181.61,2.7542]
[1736802604542,24.33168254,181.71,181.58,94.44]
[1736802605045,20.92998254,181.68,181.58,94.44]
[1736802605251,20.92998254,181.65,181.58,94.44]
[1736802605449,2.7542,181.61,181.58,94.44]
[1736802605654,20.92998254,181.65,181.58,94.44]
[1736802605951,20.92998254,181.68,181.58,94.44]
[1736802606353,20.92998254,181.65,181.58,94.44]
[1736802606549,20.92998254,181.68,181.58,94.44]
[1736802606946,24.33168254,181.71,181.58,94.44]
[1736802607854,1.7126,181.71,181.59,20.92998254]
[1736802608050,22.53908254,181.76,181.59,22.59148254]
[1736802608254,22.53908254,181.76,181.62,20.92998254]
[1736802608456,2.7526,181.72,181.63,8.1772]
[1736802608851,3.3064,181.77,181.65,20.92998254]
[1736802609153,1.6091,181.8,181.65,20.92998254]
[1736802609350,20.92998254,181.82,181.68,20.92998254]
[1736802609557,2.7515,181.8,181.74,2.7522]
[1736802609853,20.92998254,181.82,181.73,6.54]
[1736802610053,20.92998254,181.79,181.69,1.6615]
[1736802610252,20.92998254,181.79,181.68,6.54]
[1736802610448,20.92998254,181.76,181.68,6.54]
[1736802611551,2.7527,181.71,181.68,6.54]
[1736802612145,2.7525,181.73,181.68,9.2931]
[1736802612349,20.92998254,181.8,181.68,6.54]
[1736802612954,20.92998254,181.8,181.7,2.7528]
[1736802613454,2.7522,181.75,181.68,6.54]
[1736802613655,22.59148254,181.83,181.68,27.46998254]
[1736802613855,1.6615,181.83,181.71,20.92998254]
[1736802614156,2.7511,181.82,181.75,2.7521]
[1736802614347,2.7511,181.82,181.75,6.54]
[1736802614543,1.6615,181.83,181.75,6.54]
[1736802614748,22.59148254,181.83,181.7,6.54]
[1736802614953,20.92998254,181.8,181.7,6.54]
[1736802615352,2.7525,181.73,181.7,6.54]
[1736802615757,2.752,181.76,181.71,2.7525]
[1736802615962,20.92998254,181.8,181.7,6.54]
[1736802616452,2.7523,181.74,181.7,6.54]
[1736802617152,2.7521,181.75,181.7,6.54]
[1736802617757,2.7525,181.72,181.7,6.54]
[1736802617956,20.92998254,181.77,181.7,6.54]
[1736802618157,20.92998254,181.77,181.66,2.7533]
[1736802618354,20.92998254,181.77,181.65,1.6674]
[1736802618549,1.626,181.76,181.65,1.6674]
[1736802618756,1.626,181.76,181.68,2.7531]
[1736802618953,2.7527,181.72,181.65,1.6674]
[1736802619160,20.92998254,181.8,181.65,22.59738254]
[1736802619660,20.92998254,181.8,181.65,1.6674]
[1736802620365,20.92998254,181.8,181.65,22.59738254]
[1736802620864,20.92998254,181.77,181.65,1.6674]
[1736802621263,20.92998254,181.74,181.64,8.093]
[1736802621462,1.6764,181.73,181.64,1.553]
[1736802621660,20.92998254,181.77,181.64,1.553]
[1736802621861,2.7525,181.73,181.64,1.553]
[1736802622364,20.92998254,181.77,181.68,2.7531]
[1736802622566,2.7523,181.74,181.68,2.7531]
[1736802622762,20.92998254,181.8,181.65,20.92998254]
[1736802623156,1.6764,181.81,181.68,20.92998254]
[1736802623366,1.6008,181.84,181.71,20.92998254]
[1736802623563,151.96432938,181.86,181.74,20.92998254]
[1736802623758,151.96432938,181.86,181.77,20.92998254]
[1736802623959,151.96432938,181.86,181.84,2.7507]
[1736802624360,151.96432938,181.86,181.8,20.92998254]
[1736802624566,2.7497,181.91,181.8,20.92998254]
[1736802625066,2.7495,181.93,181.8,20.92998254]
[1736802625366,151.96432938,181.97,181.9,2.7497]
[1736802625569,2.7489,181.96,181.9,2.7497]
[1736802625868,2.7489,181.96,181.89,6.54]
[1736802625869,1.5983,182.0,181.89,6.54]
[1736802627364,2.7491,181.95,181.89,6.54]
[1736802627665,20.92998254,181.98,181.89,6.54]
[1736802628867,2.7494,181.93,181.89,6.54]
[1736802629468,20.92998254,181.98,181.89,6.54]
[1736802630676,20.92998254,181.95,181.89,6.54]
[1736802631274,2.7495,181.92,181.89,6.54]
[1736802631668,20.92998254,181.98,181.89,6.54]
[1736802632068,1.5983,182.0,181.89,6.54]
[1736802632273,1.5983,182.0,181.89,27.46998254]
[1736802632578,1.5983,182.0,181.9,3.2401]
[1736802632874,2.7486,181.99,181.93,2.7494]
[1736802633073,20.92998254,181.98,181.89,6.54]
[1736802633278,20.92998254,181.95,181.89,6.54]
[1736802634777,1.5983,182.0,181.89,6.54]
[1736802634976,20.92998254,181.96,181.89,6.54]
[1736802635173,20.92998254,181.96,181.84,9.7801]
[1736802636577,2.7493,181.94,181.84,9.7801]
[1736802636875,20.92998254,181.96,181.84,9.7801]
[1736802637077,2.7496,181.92,181.88,2.7501]
[1736802637377,20.92998254,181.96,181.84,9.7801]
[1736802637875,2.7497,181.92,181.87,2.7502]
[1736802638075,20.92998254,181.99,181.84,9.7801]
[1736802638574,2.7488,181.97,181.92,2.7495]
[1736802639570,1.5983,182.0,181.91,6.54]
[1736802639571,2.7491,181.95,181.91,6.54]
[1736802640174,2.7489,181.97,181.91,6.54]
[1736802640376,20.92998254,181.99,181.91,6.54]
[1736802640979,2.7492,181.95,181.91,6.54]
[1736802642780,2.7488,181.97,181.93,2.7494]
[1736802642983,1.5983,182.0,181.91,6.54]
[1736802643178,20.92998254,182.05,181.92,1.6583]
[1736802643379,2.7485,182.0,181.95,2.7491]
[1736802643586,20.92998254,182.05,181.93,1.5778]
[1736802644082,2.7488,181.97,181.93,4.3272]
[1736802644282,20.92998254,182.02,181.93,1.5778]
[1736802644983,20.92998254,182.02,181.92,2.7495]
[1736802645782,20.92998254,182.02,181.93,2.7493]
[1736802645985,20.92998254,182.05,181.91,6.54]
[1736802646885,2.7492,181.95,181.91,9.2897]
[1736802647084,20.92998254,182.05,181.91,6.54]
[1736802647276,20.92998254,182.01,181.91,6.54]
[1736802647476,20.92998254,182.01,181.92,2.7495]
[1736802648684,2.7491,181.95,181.92,2.7495]
[1736802649987,20.92998254,181.98,181.91,6.54]
[1736802650183,1.613,181.97,181.91,6.54]
[1736802650483,2.7491,181.95,181.9,2.7498]
[1736802650689,1.613,181.97,181.88,100.88]
[1736802650990,2.7498,181.91,181.88,94.36]
[1736802651285,20.92998254,181.95,181.86,6.52]
[1736802651683,2.7498,181.91,181.87,2.7502]
[1736802652182,20.92998254,181.95,181.86,6.52]
[1736802652183,2.7501,181.89,181.86,6.52]
[1736802652388,20.92998254,181.95,181.86,6.52]
[1736802652887,3.2299,181.96,181.88,2.7501]
[1736802653089,3.2299,181.96,181.86,6.52]
[1736802653584,3.2299,181.96,181.88,2.7501]
[1736802653989,2.7493,181.94,181.91,2.7497]
[1736802654489,1.613,181.97,181.86,6.52]
[1736802656186,2.7494,181.93,181.89,2.75]
[1736802656590,1.613,181.97,181.86,6.52]
[1736802656780,1.613,181.97,181.87,2.7503]
[1736802657391,2.7497,181.92,181.87,2.7503]
[1736802658495,2.7497,181.92,181.86,6.52]
[1736802658792,2.7497,181.92,181.88,2.7501]
[1736802659185,1.613,181.97,181.89,2.75]
[1736802660192,2.7496,181.92,181.88,2.7501]
[1736802660584,20.92998254,181.95,181.86,6.52]
[1736802660784,2.7498,181.91,181.87,2.7503]
[1736802661005,20.92998254,181.95,181.86,6.52]
[1736802661190,1.613,181.97,181.86,6.52]
[1736802661384,1.613,181.97,181.87,20.92998254]
[1736802661585,155.24472938,182.03,181.87,20.92998254]
[1736802661885,2.7484,182.0,181.96,2.7489]
[1736802662087,156.80052938,182.03,181.96,6.52]
[1736802662490,4.8362,182.03,181.96,6.52]
[1736802663189,2.7483,182.01,181.97,2.7487]
[1736802663591,4.8362,182.03,181.96,6.52]
[1736802663992,4.8362,182.03,181.91,6.52]
[1736802664195,4.8362,182.03,181.89,6.52]
[1736802664396,20.92998254,181.98,181.89,6.52]
[1736802664593,2.7502,181.89,181.85,2.7506]
[1736802665096,1.5555,181.94,181.84,9.931]
[1736802665298,2.7502,181.88,181.84,6.52]
[1736802665894,2.7507,181.85,181.81,94.34]
[1736802666094,3.2631,181.93,181.78,3.3455]
[1736802666095,20.92998254,181.89,181.78,3.3455]
[1736802666392,20.92998254,181.86,181.76,9.2719]
[1736802666592,3.2631,181.93,181.76,6.52]
[1736802666593,20.92998254,181.83,181.76,6.52]
[1736802666787,20.92998254,181.83,181.72,3.3455]
[1736802666997,20.92998254,181.83,181.72,9.8655]
[1736802667192,2.7513,181.81,181.72,9.8655]
[1736802667898,2.7513,181.81,181.73,6.52]
[1736802668099,2.7514,181.8,181.74,2.7523]
[1736802668398,2.7514,181.8,181.72,3.3455]
[1736802668703,2.7519,181.77,181.72,6.52]
[1736802668999,20.92998254,181.8,181.72,6.52]
[1736802670093,2.7518,181.77,181.72,6.52]
[1736802671001,2.7517,181.79,181.72,9.2725]
[1736802671204,20.92998254,181.8,181.72,9.2725]
[1736802672101,2.7525,181.73,181.69,94.36]
[1736802672291,20.92998254,181.77,181.6,60.01572508]
[1736802672491,20.92998254,181.71,181.57,3.2406]
[1736802672695,2.7534,181.67,181.62,2.754]
[1736802672892,3.3477,181.7,181.58,6.52]
[1736802673094,2.7537,181.65,181.58,2.7546]
[1736802673292,20.92998254,181.68,181.56,94.4]
[1736802673492,1.593,181.67,181.56,94.4]
[1736802673702,20.92998254,181.65,181.56,94.4]
[1736802673903,2.7543,181.61,181.56,94.4]
[1736802674100,20.92998254,181.65,181.56,94.4]
[1736802674503,23.68378254,181.65,181.57,2.7548]
[1736802675301,2.754,181.63,181.56,94.4]
[1736802676805,2.7546,181.59,181.52,2.7556]
[1736802677004,20.92998254,181.61,181.51,6.52]
[1736802677304,20.92998254,181.64,181.51,6.52]
[1736802678000,2.7544,181.61,181.53,2.7554]
[1736802678303,20.92998254,181.64,181.52,6.54]
[1736802679903,2.7546,181.59,181.52,6.54]
[1736802680405,2.7541,181.62,181.55,2.7552]
[1736802680604,22.52298254,181.67,181.52,6.54]
[1736802680806,1.593,181.67,181.54,20.92998254]
[1736802681001,6.1007,181.7,181.63,2.7539]
[1736802681205,3.3477,181.7,181.63,2.7539]
[1736802681409,3.3477,181.7,181.61,6.54]
[1736802681708,2.7531,181.69,181.62,2.754]
[1736802682506,1.6986,181.7,181.65,2.7535]
[1736802682708,1.6839,181.75,181.61,6.54]
[1736802682901,1.6839,181.75,181.62,3.2905]
[1736802683106,4.4361,181.75,181.69,2.7531]
[1736802683411,1.6839,181.75,181.68,6.54]
[1736802683610,1.6839,181.75,181.66,6.54]
[1736802684501,20.92998254,181.74,181.66,6.54]
[1736802685714,1.6839,181.75,181.66,6.54]
[1736802687214,2.7525,181.74,181.69,2.7531]
[1736802687410,3.2376,181.77,181.66,6.54]
[1736802687611,1.6582,181.77,181.66,6.54]
[1736802688007,4.4103,181.77,181.66,6.54]
[1736802688213,20.92998254,181.8,181.66,27.46998254]
[1736802688517,1.6988,181.82,181.69,20.92998254]
[1736802689016,2.7514,181.81,181.75,2.7522]
[1736802689315,1.644,181.84,181.74,6.52]
[1736802689515,23.68058254,181.86,181.8,2.7514]
[1736802689814,1.5727,181.87,181.8,2.7514]
[1736802690009,1.5727,181.87,181.75,1.6444]
[1736802690010,20.92998254,181.86,181.75,1.6444]
[1736802690210,2.7512,181.82,181.77,2.7519]
[1736802690604,20.92998254,181.86,181.75,1.6444]
[1736802690814,2.7514,181.81,181.76,2.752]
[1736802691014,2.7514,181.81,181.69,20.92998254]
[1736802691015,20.92998254,181.8,181.44,78.66849023]
[1736802691315,20.92998254,181.77,181.64,9.7568]
[1736802691515,2.7526,181.73,181.68,2.7533]
[1736802692118,20.92998254,181.77,181.64,9.7568]
[1736802692417,20.92998254,181.77,181.67,2.7534]
[1736802692620,20.92998254,181.74,181.64,3.2368]
[1736802692814,2.7527,181.72,181.65,2.7537]
[1736802693015,20.92998254,181.74,181.62,6.52]
[1736802693417,1.5636,181.76,181.62,6.52]
[1736802693418,20.92998254,181.71,181.62,6.52]
[1736802693619,1.6071,181.7,181.62,6.52]
[1736802694316,3.1693,181.7,181.62,6.52]
[1736802694726,2.7536,181.67,181.62,6.52]
[1736802695018,3.1693,181.7,181.62,6.52]
[1736802697122,5.9224,181.7,181.64,2.7538]
[1736802697419,5.9224,181.7,181.62,6.52]
[1736802697816,5.9224,181.7,181.65,2.7537]
[1736802699713,2.7531,181.69,181.65,2.7537]
[1736802699912,3.1693,181.7,181.62,6.52]
[1736802700116,2.7536,181.66,181.6,94.48]
[1736802700514,20.92998254,181.68,181.61,2.7543]
[1736802700916,2.7536,181.66,181.61,2.7543]
[1736802701117,1.6071,181.7,181.6,94.48]
[1736802701515,20.92998254,181.74,181.6,94.48]
[1736802701718,22.64518254,181.74,181.64,2.7539]
[1736802701919,2.7527,181.72,181.6,94.48]
[1736802702221,2.7527,181.72,181.66,2.7534]
[1736802702427,2.7527,181.72,181.6,94.48]
[1736802703122,2.7528,181.71,181.6,94.48]
[1736802703323,2.7528,181.71,181.66,2.7535]
[1736802703926,2.7528,181.71,181.63,2.754]
[1736802704125,2.7528,181.71,181.6,94.48]
[1736802704320,2.7527,181.72,181.6,94.48]
[1736802704521,1.7152,181.74,181.62,20.92998254]
[1736802704824,4.4676,181.74,181.63,1.7004]
[1736802705027,1.7152,181.74,181.68,2.7532]
[1736802705422,1.7152,181.74,181.66,6.52]
[1736802705423,2.7527,181.73,181.66,6.52]
[1736802706027,2.7527,181.73,181.68,2.7533]
[1736802706526,2.7527,181.73,181.69,2.7531]
[1736802706826,20.92998254,181.77,181.66,6.52]
[1736802707330,2.7524,181.74,181.69,2.753]
[1736802708619,2.7521,181.76,181.66,6.52]
[1736802708823,20.92998254,181.8,181.67,3.3155]
[1736802709328,2.752,181.77,181.72,2.7526]
[1736802709519,20.92998254,181.8,181.67,3.3155]
[1736802709721,20.92998254,181.77,181.67,3.3155]
[1736802710017,2.7526,181.73,181.69,2.753]
[1736802710420,20.92998254,181.77,181.67,3.3155]
[1736802710618,20.92998254,181.77,181.67,6.0688]
[1736802711322,20.92998254,181.74,181.62,2.7541]
[1736802711525,20.92998254,181.68,181.6,94.48]
[1736802712121,20.92998254,181.65,181.58,2.7547]
[1736802712325,20.92998254,181.62,181.5,8.1515]
[1736802713525,20.92998254,181.59,181.5,8.1515]
[1736802714331,2.7552,181.56,181.51,2.7558]
[1736802714532,2.7552,181.56,181.5,8.1515]
[1736802714533,20.92998254,181.62,181.5,8.1515]
[1736802715626,2.7545,181.6,181.54,2.7553]
[1736802715822,2.7545,181.6,181.5,8.1515]
[1736802716836,2.7545,181.6,181.53,2.7556]
[1736802717034,2.7545,181.6,181.5,8.1515]
[1736802717433,2.7541,181.63,181.57,2.7549]
[1736802717927,20.92998254,181.65,181.57,2.7549]
[1736802718129,20.92998254,181.65,181.51,20.92998254]
[1736802718331,20.92998254,181.68,181.51,20.92998254]
[1736802718930,2.7541,181.63,181.57,2.7548]
[1736802719534,2.7541,181.63,181.58,2.7548]
[1736802719736,20.92998254,181.68,181.51,20.92998254]
[1736802720132,20.92998254,181.65,181.56,2.755]
[1736802720329,20.92998254,181.59,181.5,1.6315]
[1736802720728,2.755,181.57,181.5,1.6315]
[1736802721635,20.92998254,181.59,181.5,1.6315]
[1736802721829,20.92998254,181.59,181.49,1.6166]
[1736802722031,1.5604,181.58,181.48,2.7563]
[1736802722638,2.7555,181.54,181.49,2.7561]
[1736802723036,1.5604,181.58,181.49,2.7561]
[1736802724242,1.5604,181.58,181.46,6.52]
[1736802724643,4.3153,181.58,181.46,6.52]
[1736802724935,1.5604,181.58,181.46,6.52]
[1736802725142,1.5604,181.58,181.52,2.7556]
[1736802725143,2.755,181.57,181.52,2.7556]
[1736802725440,2.755,181.57,181.46,6.52]
[1736802725636,20.92998254,181.65,181.5,20.92998254]
[1736802725842,20.92998254,181.65,181.51,1.5645]
[1736802726446,2.7542,181.63,181.59,2.7546]
[1736802726842,2.7542,181.63,181.55,6.52]
[1736802727038,20.92998254,181.68,181.55,6.52]
[1736802727344,2.7539,181.64,181.55,6.52]
[1736802727644,2.7545,181.6,181.56,1.5872]
[1736802728238,2.7545,181.6,181.55,9.2752]
[1736802728439,2.7547,181.59,181.55,9.2752]
[1736802729243,2.7547,181.59,181.55,6.52]
[1736802729438,20.92998254,181.59,181.46,6.52]
[1736802729640,1.5724,181.58,181.45,1.554]
[1736802729836,4.8987,181.58,181.48,2.7562]
[1736802730544,2.7557,181.53,181.48,2.7562]
[1736802730750,1.5724,181.58,181.46,6.52]
[1736802731145,20.92998254,181.62,181.48,20.92998254]
[1736802731750,20.92998254,181.65,181.58,2.7548]
[1736802731950,1.5724,181.66,181.55,6.52]
[1736802732739,44.09545351,181.75,181.57,20.92998254]
[1736802732740,20.92998254,181.71,181.57,20.92998254]
[1736802733445,20.92998254,181.68,181.56,1.6811]
[1736802733842,20.92998254,181.71,181.56,1.6811]
[1736802734146,20.92998254,181.71,181.61,2.7542]
[1736802734147,2.7535,181.67,181.61,2.7542]
[1736802734348,20.92998254,181.71,181.61,2.7542]
[1736802734951,20.92998254,181.71,181.59,2.7546]
[1736802735250,2.7545,181.61,181.55,94.54]
[1736802735450,2.7545,181.61,181.55,97.2951]
[1736802736047,1.5997,181.64,181.55,94.54]
[1736802736550,2.7544,181.61,181.57,2.7549]
[1736802736848,1.5997,181.64,181.57,2.7549]
[1736802737046,1.5997,181.64,181.55,94.54]
[1736802737248,2.7549,181.58,181.55,94.54]
[1736802737651,20.92998254,181.62,181.55,94.54]
[1736802737852,2.755,181.57,181.55,94.54]
[1736802738052,20.92998254,181.62,181.54,6.52]
[1736802738269,20.92998254,181.62,181.54,9.2753]
[1736802738650,2.7547,181.59,181.54,9.2753]
[1736802738955,1.5997,181.64,181.54,6.52]
[1736802739354,2.7542,181.62,181.54,6.52]
[1736802739555,1.5997,181.64,181.54,6.52]
[1736802740055,1.5997,181.64,181.58,2.7548]
[1736802740254,1.5997,181.64,181.52,1.6292]
[1736802740554,2.7555,181.54,181.49,4.3864]
[1736802741052,20.92998254,181.59,181.49,1.6303]
[1736802741359,1.5997,181.64,181.49,1.6303]
[1736802741552,4.3536,181.64,181.6,2.7545]
[1736802741953,1.5997,181.64,181.55,6.52]
[1736802742755,20.92998254,181.62,181.5,6.52]
[1736802742955,20.92998254,181.59,181.5,6.52]
[1736802743758,2.7551,181.57,181.52,2.7556]
[1736802744555,20.92998254,181.59,181.5,6.52]
[1736802745356,2.7554,181.54,181.5,9.276]
[1736802745657,20.92998254,181.59,181.5,6.52]
[1736802745862,20.92998254,181.59,181.45,1.5592]
[1736802746057,2.7557,181.53,181.48,2.7562]
[1736802746270,20.92998254,181.59,181.46,6.52]
[1736802746760,20.92998254,181.59,181.45,1.5592]
[1736802746957,1.6847,181.6,181.45,8.0792]
[1736802746958,20.92998254,181.56,181.45,8.0792]
[1736802747356,2.7557,181.53,181.48,2.7562]
[1736802749260,2.7557,181.53,181.45,8.0792]
[1736802749559,2.7557,181.53,181.49,2.7561]
[1736802749758,2.7557,181.52,181.45,8.0792]
[1736802750164,2.7557,181.52,181.48,2.7563]
[1736802750855,1.6847,181.55,181.45,8.0792]
[1736802751061,20.92998254,181.59,181.45,29.00918254]
[1736802751362,1.5838,181.58,181.45,29.00918254]
[1736802751660,2.7553,181.55,181.45,29.00918254]
[1736802752060,2.7553,181.55,181.48,2.7563]
[1736802752257,2.7557,181.52,181.45,8.0792]
[1736802752460,2.7557,181.52,181.46,6.52]
[1736802753863,2.756,181.51,181.46,9.2766]
[1736802754261,20.92998254,181.56,181.46,9.2766]
[1736802754464,2.7559,181.51,181.47,2.7564]
[1736802754761,20.92998254,181.56,181.46,6.52]
[1736802756661,20.92998254,181.5,181.27,400.35678856]
[1736802756863,20.92998254,181.44,181.33,3.2474]
[1736802757063,20.92998254,181.41,181.33,3.2474]
[1736802757259,2.7581,181.36,181.31,28.86925384]
[1736802757760,2.7581,181.36,181.31,31.62805384]
[1736802757964,2.7583,181.35,181.31,28.86925384]
[1736802758165,20.92998254,181.38,181.31,28.86925384]
[1736802758362,20.92998254,181.38,181.28,6.52]
[1736802759264,23.68788254,181.38,181.28,6.52]
[1736802759564,20.92998254,181.38,181.28,6.52]
[1736802759766,2.7581,181.37,181.31,2.7589]
[1736802760165,4.9273,181.4,181.28,6.52]
[1736802760365,1.6268,181.4,181.28,6.52]
[1736802760966,3.2458,181.47,181.3,20.92998254]
[1736802760967,24.17578254,181.47,181.3,20.92998254]
[1736802761167,1.5976,181.46,181.3,20.92998254]
[1736802761760,4.3542,181.46,181.36,2.758]
[1736802761967,1.5976,181.46,181.37,6.52]
[1736802764963,20.92998254,181.41,181.29,6.52]
[1736802765162,2.758,181.38,181.32,2.7587]
[1736802765470,2.758,181.38,181.29,6.52]
[1736802765673,2.7576,181.4,181.34,2.7583]
[1736802765972,20.92998254,181.41,181.29,6.52]
[1736802766177,23.68688254,181.44,181.29,27.44998254]
[1736802766370,1.5976,181.46,181.32,20.92998254]
[1736802766578,1.5976,181.46,181.35,20.92998254]
[1736802766869,20.92998254,181.5,181.36,8.1378]
[1736802767372,20.92998254,181.5,181.37,1.6217]
[1736802768465,2.7566,181.47,181.41,2.7573]
[1736802768767,2.7566,181.47,181.37,1.6217]
[1736802768768,20.92998254,181.5,181.37,1.6217]
[1736802769372,2.7564,181.48,181.42,2.7571]
[1736802771574,20.92998254,181.5,181.37,1.6217]
[1736802771780,20.92998254,181.47,181.37,1.6217]
[1736802772077,20.92998254,181.5,181.37,1.6217]
[1736802773570,172.89431192,181.62,181.37,1.6217]
[1736802773571,151.96432938,181.62,181.37,1.6217]
[1736802773770,151.96432938,181.62,181.44,20.92998254]
[1736802773963,151.96432938,181.62,181.54,20.92998254]
[1736802774173,149.38142938,181.62,181.55,11.5271]
[1736802774371,138.77372938,181.62,181.57,20.92998254]
[1736802774570,20.92998254,181.75,181.57,20.92998254]
[1736802775171,20.92998254,181.75,181.6,20.92998254]
[1736802775367,1.7003,181.76,181.61,94.6]
[1736802775875,2.7526,181.73,181.65,2.7537]
[1736802776084,2.7526,181.73,181.65,9.6737]
[1736802776378,34.03978536,181.74,181.65,6.92]
[1736802776579,1.7003,181.76,181.65,6.92]
[1736802776580,34.03978536,181.71,181.65,6.92]
[1736802776781,1.7217,181.7,181.65,6.92]
[1736802777077,3.3834,181.7,181.65,6.92]
[1736802777284,2.7533,181.69,181.65,6.92]
[1736802777488,3.3834,181.7,181.65,6.92]
[1736802777888,2.7534,181.68,181.65,6.92]
[1736802778386,3.3834,181.7,181.65,6.92]
[1736802778777,1.7003,181.76,181.65,6.92]
[1736802778982,1.7003,181.76,181.73,2.7524]
[1736802779185,3.267,181.79,181.66,35.63978536]
[1736802779482,3.267,181.79,181.72,2.7525]
[1736802779682,4.928,181.79,181.67,1.558]
[1736802780083,4.928,181.79,181.71,2.7528]
[1736802780386,3.2663,181.79,181.69,34.03978536]
[1736802780589,1.661,181.79,181.69,34.03978536]
[1736802780786,1.661,181.79,181.74,2.7523]
[1736802781376,1.661,181.79,181.73,6.9]
[1736802781578,34.03978536,181.86,181.73,6.9]
[1736802781789,34.03978536,181.83,181.73,6.9]
[1736802782287,1.5768,181.87,181.75,34.03978536]
[1736802782492,6.61021056,181.93,181.78,34.03978536]
[1736802782682,9.35981056,181.93,181.85,2.7507]
[1736802782881,6.61021056,181.93,181.84,6.92]
[1736802783283,1.5768,181.97,181.84,6.92]
[1736802783478,1.5768,181.97,181.84,40.95978536]
[1736802783887,1.5768,181.97,181.88,2.7501]
[1736802784190,1.5768,181.97,181.84,40.95978536]
[1736802784389,2.7491,181.96,181.88,2.7502]
[1736802784692,1.5768,181.97,181.84,6.92]
[1736802784887,1.5768,181.97,181.88,2.7502]
[1736802785089,1.5768,181.97,181.84,40.95978536]
[1736802786886,2.7494,181.94,181.84,6.92]
[1736802787085,34.03978536,181.95,181.85,6.92]
[1736802789587,34.03978536,181.92,181.85,6.92]
[1736802789792,2.75,181.9,181.85,6.92]
[1736802789987,34.03978536,181.92,181.85,6.92]
[1736802790188,2.7494,181.94,181.87,2.7504]
[1736802790390,1.5768,181.97,181.85,6.92]
[1736802790889,34.03978536,181.92,181.85,6.92]
[1736802791289,36.78948536,181.92,181.85,9.6707]
[1736802791491,34.03978536,181.95,181.85,9.6707]
[1736802791784,2.7498,181.92,181.85,6.92]
[1736802791991,34.03978536,181.95,181.85,6.92]